bitfinex-derivatives/quotes_SOLF0:USTF0_20250706
["timestamp","ask_amount","ask_price","bid_price","bid_amount"]
[1751800210973,18.59168281,147.29,147.26,240.4]
[1751800211169,2.2058,147.31,147.26,240.4]
[1751800211170,13.87101026,147.28,147.26,240.4]
[1751800211372,13.87101026,147.27,147.26,240.4]
[1751800212771,13.87101026,147.27,147.26,45.96]
[1751800212967,13.87101026,147.27,147.26,240.42]
[1751800213175,13.87101026,147.27,147.26,45.96]
[1751800213375,13.87101026,147.27,147.26,240.42]
[1751800214577,9.10102912,147.27,147.26,240.42]
[1751800215174,4.76629654,147.27,147.26,240.42]
[1751800215373,9.51365166,147.31,147.26,240.42]
[1751800215576,9.09197562,147.3,147.26,240.42]
[1751800215779,13.85791061,147.29,147.26,240.42]
[1751800216079,9.09197562,147.28,147.26,240.42]
[1751800216278,4.76593499,147.29,147.26,240.42]
[1751800216580,9.09192194,147.28,147.26,240.42]
[1751800216780,9.51365166,147.31,147.26,240.42]
[1751800217077,13.81673619,147.3,147.26,240.42]
[1751800217378,9.07330097,147.29,147.26,240.42]
[1751800217573,9.07330097,147.28,147.26,240.42]
[1751800217877,9.51365166,147.32,147.26,240.42]
[1751800218076,9.07293376,147.31,147.26,240.42]
[1751800218275,9.07293376,147.3,147.26,240.42]
[1751800218476,9.07293376,147.29,147.26,240.42]
[1751800218677,9.07293376,147.28,147.26,240.42]
[1751800218880,9.51365166,147.32,147.26,240.42]
[1751800219079,9.07303546,147.31,147.26,240.42]
[1751800219381,9.07303546,147.3,147.26,240.42]
[1751800219585,13.81597423,147.29,147.26,240.42]
[1751800219778,9.07303546,147.28,147.26,240.42]
[1751800219978,9.51365166,147.32,147.26,240.42]
[1751800220183,18.50617074,147.31,147.26,240.42]
[1751800220382,13.81608818,147.3,147.26,240.42]
[1751800220582,13.81608818,147.29,147.26,240.42]
[1751800220784,9.07305366,147.28,147.26,240.42]
[1751800220986,9.51365166,147.32,147.26,240.42]
[1751800221175,18.55053271,147.31,147.26,240.42]
[1751800221377,13.83432912,147.3,147.26,240.42]
[1751800221582,13.83432912,147.29,147.26,240.42]
[1751800221882,13.83432912,147.28,147.26,240.42]
[1751800222073,9.51365166,147.32,147.26,240.42]
[1751800222278,13.85832096,147.31,147.26,240.42]
[1751800222478,13.85832096,147.3,147.26,240.42]
[1751800222785,13.85832096,147.29,147.26,240.42]
[1751800222974,9.09283887,147.28,147.26,240.42]
[1751800223179,9.51365166,147.32,147.26,240.42]
[1751800223379,13.85799207,147.31,147.26,240.42]
[1751800223579,13.85799207,147.3,147.26,240.42]
[1751800223781,13.85799207,147.29,147.26,240.42]
[1751800224081,9.09269207,147.28,147.26,45.96]
[1751800224281,9.51365166,147.32,147.27,194.46]
[1751800224476,9.51365166,147.3,147.27,194.46]
[1751800224780,13.85893327,147.29,147.27,194.46]
[1751800225081,13.85893327,147.28,147.27,194.46]
[1751800227482,13.8686392,147.28,147.27,194.46]
[1751800232789,9.10295896,147.28,147.27,194.46]
[1751800233190,13.89246544,147.28,147.27,194.46]
[1751800233393,9.10295896,147.28,147.27,194.46]
[1751800233590,13.89246368,147.28,147.27,194.46]
[1751800234093,9.10295896,147.28,147.27,194.46]
[1751800235193,13.88428903,147.28,147.27,194.46]
[1751800236593,9.10295896,147.28,147.27,194.46]
[1751800237188,13.87363223,147.28,147.27,194.46]
[1751800247510,4.77067327,147.28,147.27,194.46]
[1751800252411,13.86899745,147.28,147.27,194.46]
[1751800253614,13.83575672,147.28,147.27,194.46]
[1751800256811,13.84699893,147.28,147.27,194.46]
[1751800260320,13.84699893,147.28,147.26,45.96]
[1751800260618,13.84699893,147.27,147.26,240.42]
[1751800261020,13.84699893,147.27,147.26,45.96]
[1751800263320,13.84699893,147.27,147.22,45.96]
[1751800263520,13.84690997,147.26,147.22,45.96]
[1751800263720,4.74858579,147.25,147.23,194.46]
[1751800263923,2.4122,147.28,147.23,194.46]
[1751800264126,13.84787461,147.27,147.23,194.46]
[1751800264422,13.84787461,147.26,147.23,194.46]
[1751800264721,2.4122,147.28,147.23,194.46]
[1751800264921,9.09906816,147.27,147.22,45.96]
[1751800265121,13.81763776,147.26,147.23,194.46]
[1751800265324,13.81763776,147.25,147.23,194.46]
[1751800265518,13.81763776,147.24,147.23,194.46]
[1751800266223,4.7185696,147.24,147.23,194.46]
[1751800266422,4.7185696,147.24,147.22,240.42]
[1751800266722,14.34634201,147.28,147.22,240.42]
[1751800266922,18.49809177,147.27,147.22,240.42]
[1751800267123,13.81327943,147.26,147.22,240.42]
[1751800267422,23.33922144,147.25,147.22,45.96]
[1751800267613,14.2391913,147.24,147.22,45.96]
[1751800267812,9.08504088,147.23,147.22,45.96]
[1751800268420,13.80117544,147.23,147.18,45.96]
[1751800268621,13.80117544,147.22,147.2,194.48]
[1751800268822,13.80117544,147.21,147.2,194.48]
[1751800270523,9.08504088,147.21,147.2,194.48]
[1751800271426,11.81747074,147.25,147.2,194.48]
[1751800271628,13.68332342,147.24,147.2,194.48]
[1751800271827,13.68332342,147.23,147.2,194.48]
[1751800272124,13.68332342,147.22,147.2,194.48]
[1751800272327,11.81747074,147.25,147.2,194.48]
[1751800272627,13.67838087,147.24,147.2,194.48]
[1751800272821,13.67838087,147.23,147.2,194.48]
[1751800273019,9.01578583,147.22,147.2,194.48]
[1751800273224,11.81747074,147.25,147.2,194.48]
[1751800273525,13.67652823,147.24,147.2,194.48]
[1751800273723,13.67652823,147.23,147.2,194.48]
[1751800273923,9.0153282,147.22,147.2,194.48]
[1751800274127,2.2951,147.25,147.2,194.48]
[1751800274328,13.67357355,147.24,147.2,194.48]
[1751800274626,13.67357355,147.23,147.2,194.48]
[1751800274828,2.2951,147.25,147.2,194.48]
[1751800275029,13.65913512,147.24,147.2,194.48]
[1751800275326,13.65913512,147.23,147.2,194.48]
[1751800275528,2.2951,147.25,147.2,194.48]
[1751800275723,13.6469517,147.24,147.18,45.96]
[1751800275925,13.6469517,147.23,147.19,194.5]
[1751800276122,2.2951,147.25,147.19,194.5]
[1751800276331,13.64688615,147.24,147.19,194.5]
[1751800276529,13.64688615,147.23,147.19,194.5]
[1751800276832,2.2951,147.25,147.19,194.5]
[1751800277026,13.6444961,147.24,147.19,194.5]
[1751800277323,13.6444961,147.23,147.19,194.5]
[1751800277523,2.2951,147.25,147.19,194.5]
[1751800277729,13.64243628,147.24,147.19,194.5]
[1751800277930,13.64243628,147.23,147.19,194.5]
[1751800278131,2.2951,147.25,147.19,194.5]
[1751800278434,13.6424993,147.24,147.19,194.5]
[1751800278728,13.6424993,147.23,147.19,194.5]
[1751800278931,2.2951,147.25,147.19,194.5]
[1751800279232,13.64074357,147.24,147.19,194.5]
[1751800279524,13.64074357,147.23,147.19,194.5]
[1751800279726,2.2951,147.25,147.19,194.5]
[1751800279929,13.63940893,147.24,147.18,45.96]
[1751800280127,13.63940893,147.23,147.19,194.52]
[1751800280328,2.2951,147.25,147.19,194.52]
[1751800280529,13.63839452,147.24,147.19,194.52]
[1751800280722,13.63839452,147.23,147.18,240.48]
[1751800281028,2.2951,147.25,147.18,240.48]
[1751800281229,13.6386264,147.24,147.18,240.48]
[1751800281429,13.6386264,147.23,147.18,240.48]
[1751800281628,2.2951,147.25,147.18,240.48]
[1751800281830,13.6377129,147.24,147.18,240.48]
[1751800282031,13.6377129,147.23,147.18,45.96]
[1751800282233,13.6377129,147.22,147.18,45.96]
[1751800282530,11.81747074,147.25,147.18,45.96]
[1751800282731,13.62724817,147.24,147.18,45.96]
[1751800282933,13.62724817,147.23,147.18,45.96]
[1751800283131,8.98246521,147.22,147.18,45.96]
[1751800283327,8.98232239,147.21,147.18,45.96]
[1751800283526,2.3541,147.23,147.18,45.96]
[1751800283727,13.6247548,147.22,147.18,45.96]
[1751800284031,8.98081044,147.21,147.18,45.96]
[1751800284322,2.3541,147.23,147.18,45.96]
[1751800284523,13.62241636,147.22,147.18,45.96]
[1751800284729,8.97928229,147.21,147.18,45.96]
[1751800284933,2.3541,147.23,147.18,45.96]
[1751800285125,13.58886874,147.22,147.18,45.96]
[1751800285326,8.97928229,147.21,147.18,45.96]
[1751800285533,2.3541,147.23,147.18,45.96]
[1751800285729,8.97828074,147.22,147.18,45.96]
[1751800285931,8.97828074,147.21,147.18,45.96]
[1751800286131,2.3541,147.23,147.18,45.96]
[1751800286334,8.97857378,147.22,147.18,45.96]
[1751800286631,8.97857378,147.21,147.18,45.96]
[1751800286827,2.3541,147.23,147.18,45.96]
[1751800287032,8.94971732,147.22,147.18,45.96]
[1751800287236,8.94971732,147.21,147.18,45.96]
[1751800287530,2.3541,147.23,147.18,45.96]
[1751800287731,8.94923949,147.22,147.18,45.96]
[1751800287933,2.3541,147.23,147.18,45.96]
[1751800288132,8.94923949,147.22,147.18,45.96]
[1751800288333,2.3541,147.23,147.18,45.96]
[1751800288532,8.94900236,147.22,147.18,45.96]
[1751800288834,2.3541,147.23,147.18,45.96]
[1751800289128,8.94900236,147.22,147.18,45.96]
[1751800289332,2.3541,147.23,147.18,45.96]
[1751800289532,8.9485452,147.22,147.18,45.96]
[1751800289830,2.3541,147.23,147.18,45.96]
[1751800290031,8.9485452,147.22,147.18,45.96]
[1751800290231,2.3541,147.23,147.18,45.96]
[1751800290431,8.94875961,147.22,147.18,45.96]
[1751800290633,2.3541,147.23,147.18,45.96]
[1751800290835,8.93901559,147.22,147.18,45.96]
[1751800291035,2.3541,147.23,147.18,45.96]
[1751800291229,8.93901559,147.22,147.18,45.96]
[1751800291433,2.3541,147.23,147.18,45.96]
[1751800291635,8.93904937,147.22,147.18,45.96]
[1751800291835,2.3541,147.23,147.18,45.96]
[1751800292136,8.93904937,147.22,147.18,45.96]
[1751800292332,2.3541,147.23,147.18,45.96]
[1751800292536,13.53654186,147.22,147.18,45.96]
[1751800292736,8.93949059,147.21,147.18,45.96]
[1751800292938,2.3541,147.23,147.18,45.96]
[1751800293232,13.53654186,147.22,147.18,45.96]
[1751800293441,8.93949059,147.21,147.18,45.96]
[1751800293637,2.3541,147.23,147.18,45.96]
[1751800293833,13.53676034,147.22,147.18,45.96]
[1751800294037,8.93963534,147.21,147.18,45.96]
[1751800294239,2.3541,147.23,147.18,45.96]
[1751800294440,13.53730475,147.22,147.18,45.96]
[1751800294640,8.93999395,147.21,147.18,45.96]
[1751800294842,2.3541,147.23,147.18,45.96]
[1751800295144,13.53038338,147.22,147.18,45.96]
[1751800295344,8.93999395,147.21,147.18,45.96]
[1751800295645,2.3541,147.23,147.18,45.96]
[1751800295846,13.54053566,147.22,147.18,45.96]
[1751800296146,13.54053566,147.21,147.18,45.96]
[1751800296344,2.3541,147.23,147.18,45.96]
[1751800296645,13.54242134,147.22,147.18,45.96]
[1751800296839,13.54242134,147.21,147.18,45.96]
[1751800297036,2.3541,147.23,147.18,45.96]
[1751800297245,13.54347131,147.22,147.18,45.96]
[1751800297441,8.95169726,147.21,147.18,45.96]
[1751800297740,2.3541,147.23,147.18,45.96]
[1751800297942,13.5437544,147.22,147.18,45.96]
[1751800298138,13.5437544,147.21,147.18,45.96]
[1751800298343,2.3541,147.23,147.18,45.96]
[1751800298546,13.54545686,147.22,147.18,45.96]
[1751800298849,13.54545686,147.21,147.18,45.96]
[1751800299147,2.3541,147.23,147.18,45.96]
[1751800299345,13.5476403,147.22,147.18,45.96]
[1751800299545,2.3541,147.23,147.18,45.96]
[1751800299546,13.5476403,147.21,147.18,45.96]
[1751800299746,2.3541,147.23,147.18,45.96]
[1751800299942,13.54756373,147.22,147.18,45.96]
[1751800300142,13.54756373,147.21,147.18,45.96]
[1751800300339,2.3541,147.23,147.18,45.96]
[1751800300542,13.56134596,147.22,147.18,45.96]
[1751800300745,13.56134596,147.21,147.18,45.96]
[1751800300948,2.3541,147.23,147.18,45.96]
[1751800301148,13.56092836,147.22,147.18,45.96]
[1751800301350,13.56092836,147.21,147.18,45.96]
[1751800301547,4.60510025,147.2,147.18,45.96]
[1751800301754,2.3541,147.23,147.18,45.96]
[1751800302050,13.5639611,147.22,147.18,45.96]
[1751800302243,13.5639611,147.21,147.18,45.96]
[1751800302444,13.5639611,147.2,147.18,45.96]
[1751800302746,2.3541,147.23,147.18,45.96]
[1751800302944,13.56753591,147.22,147.18,45.96]
[1751800303145,13.56753591,147.21,147.18,45.96]
[1751800303345,13.56753591,147.2,147.18,45.96]
[1751800303546,2.3541,147.23,147.18,45.96]
[1751800303749,13.57171539,147.22,147.18,45.96]
[1751800303947,13.57171539,147.21,147.18,45.96]
[1751800304142,13.57171539,147.2,147.18,45.96]
[1751800304339,11.83363427,147.23,147.18,45.96]
[1751800304543,13.57661607,147.22,147.18,45.96]
[1751800304741,13.57661607,147.21,147.18,45.96]
[1751800304947,13.57661607,147.2,147.18,45.96]
[1751800305148,11.83363427,147.23,147.18,45.96]
[1751800305343,13.57661607,147.22,147.18,45.96]
[1751800305544,13.57661607,147.21,147.18,45.96]
[1751800305748,13.57661607,147.2,147.18,45.96]
[1751800305949,11.83363427,147.23,147.18,45.96]
[1751800306249,13.57582804,147.22,147.18,45.96]
[1751800306449,13.57582804,147.21,147.18,45.96]
[1751800306653,8.96675673,147.2,147.18,45.96]
[1751800306844,11.83363427,147.23,147.18,45.96]
[1751800307050,13.58012116,147.22,147.18,45.96]
[1751800307349,13.58012116,147.21,147.18,45.96]
[1751800307551,13.58012116,147.2,147.18,45.96]
[1751800307753,9.47953427,147.23,147.18,45.96]
[1751800308052,13.5851079,147.22,147.18,45.96]
[1751800308252,13.5851079,147.21,147.18,45.96]
[1751800308456,13.5851079,147.2,147.18,45.96]
[1751800308753,8.97322619,147.19,147.18,45.96]
[1751800312357,13.59388106,147.19,147.18,45.96]
[1751800316156,8.97322619,147.19,147.18,45.96]
[1751800317458,13.59648563,147.19,147.18,45.96]
[1751800318759,8.97322619,147.19,147.18,45.96]
[1751800321565,9.47953427,147.24,147.18,45.96]
[1751800321763,13.63711138,147.23,147.18,45.96]
[1751800321953,13.63711138,147.22,147.19,2.2176]
[1751800322158,9.01374997,147.21,147.19,2.2176]
[1751800322359,9.47953427,147.25,147.19,2.2176]
[1751800322558,13.65628649,147.24,147.19,2.2176]
[1751800322758,13.65628649,147.23,147.19,2.2176]
[1751800322968,9.01144548,147.22,147.19,2.2176]
[1751800323267,9.01144548,147.21,147.19,2.2176]
[1751800323458,9.47953427,147.25,147.19,2.2176]
[1751800323660,13.65432313,147.24,147.19,2.2176]
[1751800323865,13.65432313,147.23,147.19,2.2176]
[1751800324060,9.01007646,147.22,147.19,2.2176]
[1751800324364,9.01007646,147.21,147.19,2.2176]
[1751800324562,9.47953427,147.25,147.19,2.2176]
[1751800324765,13.65250305,147.24,147.19,2.2176]
[1751800325064,13.65250305,147.23,147.19,2.2176]
[1751800325265,9.00881981,147.22,147.19,2.2176]
[1751800325464,9.00881981,147.21,147.19,2.2176]
[1751800325663,9.47953427,147.25,147.19,2.2176]
[1751800325857,13.68716148,147.24,147.19,2.2176]
[1751800326059,13.68716148,147.23,147.19,2.2176]
[1751800326260,9.03561397,147.22,147.19,2.2176]
[1751800326460,9.03561397,147.21,147.19,2.2176]
[1751800326763,9.47953427,147.25,147.19,2.2176]
[1751800326959,13.71924929,147.24,147.19,2.2176]
[1751800327164,13.71924929,147.23,147.19,2.2176]
[1751800327366,9.03453038,147.22,147.19,2.2176]
[1751800327560,9.47953427,147.25,147.19,2.2176]
[1751800327760,13.71696062,147.24,147.19,2.2176]
[1751800328064,13.71696062,147.23,147.19,2.2176]
[1751800328265,9.03299654,147.22,147.19,2.2176]
[1751800328465,9.47953427,147.25,147.19,2.2176]
[1751800328662,13.71488556,147.24,147.18,45.96]
[1751800328963,9.47953427,147.22,147.18,45.96]
[1751800329167,13.71488556,147.21,147.18,45.96]
[1751800329368,13.71488556,147.2,147.18,45.96]
[1751800329668,13.71488556,147.19,147.18,45.96]
[1751800329865,9.03162548,147.19,147.18,45.96]
[1751800341576,9.03162548,147.19,147.16,45.96]
[1751800341777,9.47953427,147.22,147.16,45.96]
[1751800341980,13.67676533,147.21,147.16,45.96]
[1751800342182,13.67676533,147.2,147.16,45.96]
[1751800342374,9.01459155,147.19,147.16,45.96]
[1751800342575,9.47953427,147.22,147.16,45.96]
[1751800342775,13.69122015,147.21,147.16,45.96]
[1751800342984,13.69122015,147.2,147.16,45.96]
[1751800343180,13.69122015,147.19,147.16,45.96]
[1751800343480,9.47953427,147.22,147.16,45.96]
[1751800343692,13.69146424,147.21,147.16,45.96]
[1751800343980,13.69146424,147.2,147.16,45.96]
[1751800344179,13.69146424,147.19,147.16,45.96]
[1751800344379,9.47953427,147.22,147.16,45.96]
[1751800344579,13.69171795,147.21,147.16,45.96]
[1751800344885,13.69171795,147.2,147.16,45.96]
[1751800345074,13.69171795,147.19,147.16,45.96]
[1751800345278,9.47953427,147.23,147.16,45.96]
[1751800345479,18.24029041,147.22,147.16,45.96]
[1751800345679,13.67144952,147.21,147.16,45.96]
[1751800345977,13.67144952,147.2,147.16,45.96]
[1751800346178,13.67144952,147.19,147.16,45.96]
[1751800346378,9.47953427,147.23,147.16,45.96]
[1751800346578,18.24081288,147.22,147.16,45.96]
[1751800346784,13.67175111,147.21,147.16,45.96]
[1751800346985,13.67175111,147.2,147.16,45.96]
[1751800347292,13.67175111,147.19,147.16,45.96]
[1751800347474,9.47953427,147.23,147.16,45.96]
[1751800347779,18.24135917,147.22,147.16,45.96]
[1751800347980,13.67206541,147.21,147.16,45.96]
[1751800348178,13.67206541,147.2,147.16,45.96]
[1751800348379,13.67206541,147.19,147.16,45.96]
[1751800348581,9.47953427,147.23,147.16,45.96]
[1751800348780,18.24193059,147.22,147.16,45.96]
[1751800348982,13.67239309,147.21,147.16,45.96]
[1751800349173,13.67239309,147.2,147.16,45.96]
[1751800349374,13.67239309,147.19,147.16,45.96]
[1751800349582,9.47953427,147.23,147.16,45.96]
[1751800349784,18.24252852,147.22,147.16,45.96]
[1751800350082,13.67273483,147.21,147.16,45.96]
[1751800350383,13.67273483,147.2,147.16,45.96]
[1751800350585,13.67273483,147.19,147.16,45.96]
[1751800350785,9.47953427,147.23,147.16,45.96]
[1751800350986,18.24315484,147.22,147.16,45.96]
[1751800351187,13.67309161,147.21,147.16,45.96]
[1751800351486,13.67309161,147.2,147.16,45.96]
[1751800351784,13.67309161,147.19,147.16,45.96]
[1751800351987,9.47953427,147.23,147.16,45.96]
[1751800352187,18.23411704,147.22,147.16,45.96]
[1751800352388,13.67321987,147.21,147.16,45.96]
[1751800352691,13.67321987,147.2,147.16,45.96]
[1751800352985,13.67321987,147.19,147.16,45.96]
[1751800353187,9.47953427,147.23,147.16,45.96]
[1751800353388,18.23459668,147.22,147.16,45.96]
[1751800353587,13.67361015,147.21,147.16,45.96]
[1751800353787,13.67361015,147.2,147.16,45.96]
[1751800353988,13.67361015,147.19,147.16,45.96]
[1751800354178,9.47953427,147.23,147.16,45.96]
[1751800354384,18.23455407,147.22,147.16,45.96]
[1751800354685,13.67363035,147.21,147.16,45.96]
[1751800354878,13.67363035,147.2,147.16,45.96]
[1751800355083,13.67363035,147.19,147.16,45.96]
[1751800355290,9.47953427,147.22,147.16,45.96]
[1751800355480,13.67032392,147.21,147.16,45.96]
[1751800355688,13.67032392,147.2,147.16,45.96]
[1751800355894,9.02058064,147.19,147.16,45.96]
[1751800356093,9.47953427,147.23,147.16,45.96]
[1751800356295,13.67005408,147.22,147.16,45.96]
[1751800356496,13.67005408,147.21,147.16,45.96]
[1751800356700,13.67005408,147.2,147.16,45.96]
[1751800356898,9.02043039,147.19,147.16,45.96]
[1751800357095,9.47953427,147.23,147.16,45.96]
[1751800357299,13.67050367,147.22,147.16,45.96]
[1751800357497,13.67050367,147.21,147.16,45.96]
[1751800357698,13.67050367,147.2,147.16,45.96]
[1751800357900,9.02080755,147.19,147.16,45.96]
[1751800358198,9.47953427,147.22,147.16,45.96]
[1751800358399,13.67080838,147.21,147.16,45.96]
[1751800358598,13.67080838,147.2,147.16,45.96]
[1751800358804,9.02094856,147.19,147.16,45.96]
[1751800359004,9.47953427,147.23,147.16,45.96]
[1751800359206,23.15026288,147.22,147.16,45.96]
[1751800359404,13.67072861,147.21,147.16,45.96]
[1751800359600,13.67072861,147.2,147.16,45.96]
[1751800359802,9.02086879,147.19,147.16,45.96]
[1751800360002,9.47953427,147.22,147.16,45.96]
[1751800360202,13.67099211,147.21,147.16,45.96]
[1751800360404,13.67099211,147.2,147.16,45.96]
[1751800360605,9.02104045,147.19,147.16,45.96]
[1751800360804,9.47953427,147.22,147.16,45.96]
[1751800361002,13.67126968,147.21,147.16,45.96]
[1751800361204,13.67126968,147.2,147.16,45.96]
[1751800361503,9.02122126,147.19,147.16,45.96]
[1751800361701,9.47953427,147.23,147.16,45.96]
[1751800361906,13.67069678,147.22,147.16,45.96]
[1751800362106,13.67069678,147.21,147.16,45.96]
[1751800362303,13.67069678,147.2,147.16,45.96]
[1751800362506,9.02090681,147.19,147.16,45.96]
[1751800362802,9.47953427,147.23,147.16,45.96]
[1751800363002,13.67073231,147.22,147.16,45.96]
[1751800363201,13.67073231,147.21,147.16,45.96]
[1751800363403,9.47953427,147.23,147.16,45.96]
[1751800363404,13.67073231,147.2,147.16,45.96]
[1751800363604,9.0209281,147.19,147.16,45.96]
[1751800363808,9.47953427,147.23,147.16,45.96]
[1751800364105,13.6707749,147.22,147.16,45.96]
[1751800364306,13.6707749,147.21,147.16,45.96]
[1751800364602,13.6707749,147.2,147.16,45.96]
[1751800364808,9.47953427,147.23,147.16,45.96]
[1751800365109,13.67060417,147.22,147.16,45.96]
[1751800365303,9.47953427,147.25,147.17,2.2651]
[1751800365505,13.66755787,147.24,147.17,2.2651]
[1751800365698,13.66755787,147.23,147.17,2.2651]
[1751800365901,13.66755787,147.22,147.17,2.2651]
[1751800366101,9.47953427,147.25,147.17,2.2651]
[1751800366300,13.66679904,147.24,147.17,2.2651]
[1751800366506,13.66679904,147.23,147.17,2.2651]
[1751800366704,9.01828891,147.22,147.17,2.2651]
[1751800366904,11.77973427,147.26,147.17,2.2651]
[1751800367108,13.66547504,147.25,147.17,2.2651]
[1751800367307,13.66547504,147.24,147.17,2.2651]
[1751800367504,13.66547504,147.23,147.17,2.2651]
[1751800367707,9.01768288,147.22,147.17,2.2651]
[1751800368006,11.77973427,147.26,147.17,2.2651]
[1751800368204,13.66493664,147.25,147.17,2.2651]
[1751800368405,13.66493664,147.24,147.17,2.2651]
[1751800368611,13.66493664,147.23,147.17,2.2651]
[1751800368907,9.01734,147.22,147.17,2.2651]
[1751800369107,11.77973427,147.26,147.17,2.2651]
[1751800369308,13.66407748,147.25,147.17,2.2651]
[1751800369508,13.66407748,147.24,147.17,2.2651]
[1751800369707,13.66407748,147.23,147.17,2.2651]
[1751800369908,9.01667446,147.22,147.17,2.2651]
[1751800370209,11.77973427,147.26,147.17,2.2651]
[1751800370417,13.70829569,147.25,147.17,2.2651]
[1751800370710,13.70829569,147.24,147.17,2.2651]
[1751800370909,13.70829569,147.23,147.17,2.2651]
[1751800371109,9.016357,147.22,147.17,2.2651]
[1751800371307,11.77973427,147.26,147.17,2.2651]
[1751800371507,13.74501962,147.25,147.17,2.2651]
[1751800371707,13.74501962,147.24,147.17,2.2651]
[1751800371910,13.74501962,147.23,147.17,2.2651]
[1751800372208,9.05327042,147.22,147.17,2.2651]
[1751800372510,11.77973427,147.26,147.17,2.2651]
[1751800372713,13.75670259,147.25,147.17,2.2651]
[1751800372910,13.75670259,147.24,147.17,2.2651]
[1751800373103,9.065134,147.23,147.17,2.2651]
[1751800373307,9.065134,147.22,147.17,2.2651]
[1751800373508,11.77973427,147.26,147.17,2.2651]
[1751800373807,13.75621236,147.25,147.17,2.2651]
[1751800374003,13.75621236,147.24,147.17,2.2651]
[1751800374205,11.77973427,147.26,147.17,2.2651]
[1751800374206,9.06482108,147.23,147.17,2.2651]
[1751800374402,9.06482108,147.22,147.17,2.2651]
[1751800374604,11.77973427,147.26,147.17,2.2651]
[1751800374804,13.75477501,147.25,147.17,2.2651]
[1751800375008,13.75477501,147.24,147.17,2.2651]
[1751800375210,9.06386652,147.23,147.17,2.2651]
[1751800375409,9.06386652,147.22,147.17,2.2651]
[1751800375611,11.77973427,147.26,147.17,2.2651]
[1751800375814,13.75366269,147.25,147.17,2.2651]
[1751800376015,13.75366269,147.24,147.17,2.2651]
[1751800376312,9.06314221,147.23,147.17,2.2651]
[1751800376513,9.06314221,147.22,147.17,2.2651]
[1751800376715,11.77973427,147.26,147.17,2.2651]
[1751800376915,13.75269694,147.25,147.17,2.2651]
[1751800377115,13.75269694,147.24,147.17,2.2651]
[1751800377311,9.06250819,147.23,147.17,2.2651]
[1751800377509,9.06250819,147.22,147.17,2.2651]
[1751800377716,11.77973427,147.26,147.17,2.2651]
[1751800377915,13.75171768,147.25,147.17,2.2651]
[1751800378209,13.75171768,147.24,147.17,2.2651]
[1751800378411,9.0618626,147.23,147.17,2.2651]
[1751800378615,9.0618626,147.22,147.17,2.2651]
[1751800378813,11.77973427,147.26,147.17,2.2651]
[1751800379018,13.75089762,147.25,147.17,2.2651]
[1751800379320,13.75089762,147.24,147.17,2.2651]
[1751800379521,9.06132337,147.23,147.17,2.2651]
[1751800379718,9.06132337,147.22,147.17,2.2651]
[1751800379918,11.77973427,147.26,147.17,2.2651]
[1751800380119,13.7501663,147.25,147.17,2.2651]
[1751800380319,13.7501663,147.24,147.17,2.2651]
[1751800380521,9.06084345,147.23,147.17,2.2651]
[1751800380719,9.06084345,147.22,147.17,2.2651]
[1751800380918,11.77973427,147.26,147.17,2.2651]
[1751800381225,13.75000922,147.25,147.17,2.2651]
[1751800381416,13.75000922,147.24,147.17,2.2651]
[1751800381616,9.06074035,147.23,147.17,2.2651]
[1751800381818,9.06037656,147.22,147.17,2.2651]
[1751800382125,11.77973427,147.26,147.17,2.2651]
[1751800382322,13.74899946,147.25,147.17,2.2651]
[1751800382518,13.74899946,147.24,147.17,2.2651]
[1751800382719,9.06003441,147.23,147.17,2.2651]